bitfinex/quotes_ETHUSD_20240711
["timestamp","ask_amount","ask_price","bid_price","bid_amount"]
[1720666277298,2.4666,3112.0,3111.2,0.835]
[1720666277590,0.09811844,3111.3,3111.2,0.835]
[1720666278296,0.09799706,3111.3,3111.2,0.835]
[1720666278494,1.21190343,3111.3,3111.2,0.835]
[1720666278702,0.09799706,3111.3,3111.2,0.835]
[1720666279217,0.33614894,3112.3,3111.3,2.3939]
[1720666279500,7.44,3112.6,3112.1,3.2289]
[1720666279501,1.11372409,3112.2,3112.1,3.2289]
[1720666279672,1.20526778,3112.2,3112.1,2.3939]
[1720666280711,1.20517502,3112.2,3111.7,2.4199]
[1720666281010,1.11363133,3112.1,3111.7,2.4199]
[1720666281226,1.2054679,3112.1,3111.7,2.4199]
[1720666281396,1.11363133,3112.0,3111.7,2.4199]
[1720666281596,0.0918868,3111.9,3111.8,0.89926705]
[1720666281794,0.0918868,3111.9,3111.8,0.835]
[1720666281998,7.44,3112.6,3111.8,0.835]
[1720666282190,1.82824609,3112.5,3111.8,0.835]
[1720666282503,1.73635712,3112.4,3111.8,0.835]
[1720666282710,1.11359888,3112.3,3111.8,0.835]
[1720666283022,0.09185886,3112.3,3111.8,0.835]
[1720666283218,1.11359888,3112.2,3111.8,0.835]
[1720666283406,1.20545786,3112.2,3111.8,0.835]
[1720666283624,1.11359888,3112.1,3111.8,0.835]
[1720666283831,1.20544786,3112.1,3111.8,0.835]
[1720666284134,0.09184898,3112.1,3111.8,0.835]
[1720666284436,7.44,3112.6,3111.8,0.835]
[1720666284437,1.11365859,3112.0,3111.8,0.835]
[1720666284641,7.44,3112.6,3111.8,0.835]
[1720666284802,0.0918387,3111.9,3111.8,0.835]
[1720666285002,7.44,3112.6,3111.8,0.835]
[1720666285196,1.20554378,3112.5,3111.8,0.835]
[1720666285402,3.42244511,3112.4,3111.4,2.3566]
[1720666285635,1.20547972,3112.3,3111.4,3.1916]
[1720666285840,1.11364511,3112.2,3111.6,0.835]
[1720666286042,1.2054731,3112.2,3111.6,0.835]
[1720666286335,1.11364511,3112.1,3111.6,0.835]
[1720666286739,0.09180799,3112.0,3111.6,0.835]
[1720666287039,1.11364511,3111.9,3111.6,0.835]
[1720666287240,1.11364511,3111.9,3111.4,0.835]
[1720666287241,1.20543097,3111.9,3111.4,0.835]
[1720666287551,1.11384124,3111.8,3111.2,0.835]
[1720666287926,1.20552943,3111.7,3111.2,0.835]
[1720666288236,1.11384124,3111.6,3111.2,0.835]
[1720666288440,1.20552281,3111.6,3111.2,0.835]
[1720666288622,1.11384124,3111.5,3111.2,0.835]
[1720666288830,1.20548705,3111.5,3110.5,2.4725]
[1720666289015,1.11384124,3111.4,3110.9,0.835]
[1720666289220,0.09153319,3111.3,3110.9,0.835]
[1720666289421,1.11384124,3111.2,3110.9,0.835]
[1720666289710,1.20534752,3111.1,3110.9,0.835]
[1720666289902,0.09150628,3111.1,3110.9,0.835]
[1720666290102,0.835,3112.0,3110.9,0.835]
[1720666290302,0.08841836,3111.0,3110.9,0.835]
[1720666290503,0.32255,3111.9,3110.9,0.835]
[1720666290705,0.08841836,3111.0,3110.9,0.835]
[1720666290937,0.32255,3111.9,3110.9,0.835]
[1720666291139,1.1139705,3111.8,3111.2,0.835]
[1720666291318,1.1139705,3111.7,3111.2,0.835]
[1720666291635,1.1139705,3111.6,3111.4,0.835]
[1720666291845,1.1139705,3111.5,3111.4,0.835]
[1720666292348,1.20216355,3111.5,3111.4,0.835]
[1720666293942,0.08819305,3111.5,3111.4,3.1416]
[1720666294144,0.08819305,3111.5,3111.4,3.45576]
[1720666294441,2.2808,3112.4,3111.4,3.45576]
[1720666294641,1.11369292,3112.3,3111.9,0.835]
[1720666294898,1.11369292,3112.2,3111.9,0.835]
[1720666295079,1.11369292,3112.1,3111.9,0.835]
[1720666295244,1.11369292,3112.0,3111.9,0.835]
[1720666295654,1.11369292,3112.0,3111.7,0.835]
[1720666295841,1.11369292,3111.9,3111.7,0.835]
[1720666296037,1.11369292,3112.3,3111.7,0.835]
[1720666296250,0.33944929,3112.2,3111.7,0.835]
[1720666296598,1.11369292,3112.1,3111.4,2.3066]
[1720666297390,0.33944929,3112.2,3111.4,2.3066]
[1720666297391,1.11377259,3112.0,3111.4,2.3066]
[1720666297555,1.11377259,3111.9,3111.4,2.3066]
[1720666297752,1.11376439,3111.8,3111.4,2.3066]
[1720666298092,1.11376439,3111.7,3111.4,2.54368697]
[1720666298291,0.33617429,3112.5,3111.4,4.54768697]
[1720666298461,1.11364246,3112.4,3111.4,4.61194775]
[1720666298691,1.11364246,3112.3,3111.4,4.61194775]
[1720666298891,1.11364246,3112.4,3111.4,4.54768697]
[1720666299199,1.11364246,3112.4,3111.5,2.3421]
[1720666299505,7.44,3112.6,3112.3,2.3421]
[1720666300513,7.44,3112.6,3112.3,2.40635235]
[1720666300722,7.44,3112.6,3112.3,5.40635235]
[1720666304716,12.47,3113.5,3112.3,5.40635235]
[1720666304717,7.44,3113.0,3112.3,5.40635235]
[1720666304917,0.08863385,3112.5,3112.4,0.74103524]
[1720666305093,7.44,3113.3,3112.4,3.74103524]
[1720666305294,7.44,3113.3,3112.5,0.06423972]
[1720666305619,0.0887072,3113.2,3112.5,0.06423972]
[1720666307132,0.0887072,3113.2,3112.6,4.284]
[1720666307305,0.0887072,3113.2,3112.7,0.49906202]
[1720666307506,0.0887072,3113.2,3112.8,0.06423804]
[1720666307740,7.44,3113.3,3112.8,0.06423804]
[1720666307947,0.08870058,3113.1,3112.8,0.06423804]
[1720666308124,0.08871058,3113.2,3112.8,0.06423804]
[1720666308331,0.08869059,3113.0,3112.7,0.43482397]
[1720666308538,7.44,3113.3,3112.8,0.4718824]
[1720666308751,0.08868059,3112.9,3112.8,0.4718824]
[1720666308929,7.44,3113.3,3112.8,0.4718824]
[1720666309118,0.08885039,3112.9,3112.8,0.4718824]
[1720666309319,7.44,3113.3,3112.8,0.4718824]
[1720666309962,0.08888038,3113.2,3112.8,0.4718824]
[1720666310316,7.44,3113.3,3112.8,0.4718824]
[1720666310831,7.44,3113.6,3112.8,0.4718824]
[1720666311214,0.08893556,3113.5,3112.8,0.4718824]
[1720666312817,0.08893556,3113.5,3113.1,2.004]
[1720666313051,2.2912,3114.4,3113.3,2.4088]
[1720666313266,0.33620118,3114.2,3113.4,0.06422896]
[1720666313769,0.33620118,3114.2,3113.3,2.4088]
[1720666314643,0.33620118,3114.2,3113.1,2.004]
[1720666314968,1.11313208,3114.1,3112.7,2.004]
[1720666315189,3.40433208,3114.0,3112.7,4.4128]
[1720666315379,0.34043321,3113.9,3112.8,3.0]
[1720666316432,0.33620118,3114.2,3112.8,3.0]
[1720666316433,0.33620118,3114.2,3112.8,3.06423779]
[1720666316986,0.33620118,3114.2,3112.9,2.367]
[1720666317149,0.33620118,3114.2,3113.0,0.06423116]
[1720666317486,0.33620118,3114.2,3113.1,2.004]
[1720666317684,0.33620118,3114.2,3113.2,0.06422894]
[1720666317839,0.34862797,3114.1,3113.1,2.004]
[1720666318241,0.34862797,3114.1,3113.2,0.06422995]
[1720666319204,0.08939785,3114.1,3113.2,0.06422995]
[1720666320309,0.08939785,3114.1,3113.1,2.004]
[1720666320704,0.33620118,3114.2,3113.1,2.004]
[1720666321006,0.33620118,3114.2,3113.1,2.06823021]
[1720666321505,1.1130667,3114.1,3113.1,2.06823021]
[1720666321706,0.08945646,3114.1,3113.2,0.20682302]
[1720666321874,0.08945646,3114.1,3113.3,0.06422893]
[1720666322272,0.08945646,3114.1,3113.4,2.4256]
[1720666322506,0.08945646,3114.1,3113.5,0.06422887]
[1720666322710,0.08945646,3114.1,3113.6,0.06422886]
[1720666323004,0.08945646,3114.1,3113.6,0.31321175]
[1720666323183,0.08945646,3114.1,3113.6,0.24898289]
[1720666323508,0.08951678,3114.0,3113.4,2.4256]
[1720666323721,2.70022232,3114.6,3113.4,2.4256]
[1720666324013,0.08950679,3113.9,3113.4,2.4256]
[1720666324186,2.70022232,3114.6,3113.4,2.4256]
[1720666324506,1.20255141,3114.5,3113.4,2.4256]
[1720666324713,1.50326206,3114.4,3113.4,2.4256]
[1720666325036,1.11298469,3114.3,3113.4,2.4256]
[1720666325175,1.11298469,3114.2,3113.4,2.4256]
[1720666325371,0.08958767,3114.2,3113.4,2.4256]
[1720666326008,0.39027737,3114.4,3113.4,2.4256]
[1720666326219,0.08955408,3114.1,3113.4,2.4256]
[1720666326423,0.08957405,3114.3,3113.4,2.9888423]
[1720666326713,1.11297716,3114.2,3113.4,2.9888423]
[1720666326913,1.2025446,3114.2,3113.4,2.9888423]
[1720666327124,1.11298997,3114.1,3113.4,2.9888423]
[1720666327282,0.08955745,3114.1,3113.4,2.9888423]
[1720666327617,2.70022232,3114.6,3113.5,0.60530693]
[1720666327780,0.08961631,3114.0,3113.4,2.4256]
[1720666328126,0.08960147,3113.9,3113.4,2.4256]
[1720666328281,2.70022232,3114.6,3113.4,2.4256]
[1720666328638,1.11299133,3114.5,3113.1,4.4389]
[1720666328858,1.11299133,3114.5,3112.8,2.4349]
[1720666328859,2.4188,3114.3,3112.8,2.4349]
[1720666329145,1.20260188,3114.2,3112.8,2.49913898]
[1720666329300,1.11299133,3114.1,3112.8,2.49913898]
[1720666329500,1.20277674,3114.1,3112.8,2.4349]
[1720666329814,1.11299133,3114.0,3112.8,2.87879]
[1720666330222,0.08950394,3113.9,3112.8,2.87879]
[1720666330540,1.11309055,3114.2,3112.8,2.87879]
[1720666330717,0.08949975,3113.8,3112.8,2.87879]
[1720666330902,1.11309055,3113.7,3112.9,0.0642319]
[1720666331104,1.11309055,3113.6,3112.8,2.4349]
[1720666331329,2.4188,3114.3,3112.8,2.4349]
[1720666331330,1.11309055,3114.2,3112.8,2.4349]
[1720666331636,0.08949645,3113.5,3112.8,2.4349]
[1720666331837,1.11309055,3113.4,3112.8,2.4349]
[1720666332009,1.11309055,3114.2,3112.8,2.4349]
[1720666332215,1.46635064,3114.1,3112.8,2.4349]
[1720666332434,1.11316158,3114.0,3112.8,2.4349]
[1720666332636,0.44275219,3114.1,3112.8,2.4349]
[1720666332637,1.11316158,3113.9,3112.8,2.4349]
[1720666332804,0.08936064,3113.9,3112.8,2.4349]
[1720666333003,1.11316158,3113.8,3112.8,2.4349]
[1720666333221,1.11316158,3113.8,3112.8,2.87879]
[1720666333429,0.08933755,3113.7,3112.8,2.87879]
[1720666333813,1.11316621,3113.6,3112.9,3.07923645]
[1720666334107,1.11316621,3113.5,3113.0,0.06423078]
[1720666334404,0.28001214,3114.2,3113.0,0.41654286]
[1720666334608,1.11304066,3114.1,3113.0,0.35231208]
[1720666334915,1.11304066,3114.0,3113.0,0.35231208]
[1720666335121,1.20245078,3114.0,3113.0,0.35231208]
[1720666335327,1.11304066,3113.9,3113.1,0.34315392]
[1720666335538,1.20244321,3113.9,3113.1,0.34315392]
[1720666335739,1.11304066,3113.8,3113.1,0.34315392]
[1720666335904,1.20243322,3113.8,3113.1,0.34315392]
[1720666336237,1.11304066,3113.7,3113.1,0.34315392]
[1720666336551,0.08954917,3113.6,3113.1,0.40738363]
[1720666336842,1.11304066,3113.5,3113.1,0.40738363]
[1720666337043,0.28001214,3114.2,3113.1,0.40738363]
[1720666337247,1.38293108,3114.1,3113.1,2.41138363]
[1720666337404,1.11304987,3114.0,3113.2,2.3342]
[1720666337600,1.11304987,3113.9,3113.3,0.06422723]
[1720666337932,1.11304987,3113.8,3113.3,0.06422723]
[1720666338107,1.11304987,3113.7,3113.3,0.06422723]
[1720666338451,2.2611,3114.6,3113.4,0.53984272]
[1720666338452,1.11304987,3113.6,3113.4,0.53984272]
[1720666338743,0.3362233,3114.3,3113.3,0.06422723]
[1720666338958,0.08953408,3113.5,3113.3,0.06422723]
[1720666339113,0.3362233,3114.3,3113.2,2.3342]
[1720666339314,0.08956773,3113.4,3113.2,2.3342]
[1720666339512,0.3362233,3114.3,3113.3,0.43382]
[1720666339714,1.11297863,3114.2,3113.3,0.43382]
[1720666339946,1.11297863,3114.1,3113.3,0.43382]
[1720666340147,1.11297863,3114.0,3113.3,0.43382]
[1720666340453,1.11296567,3113.9,3113.3,0.43382]
[1720666340765,1.11296567,3113.8,3113.4,0.276802]
[1720666340947,1.11296567,3114.2,3113.4,0.276802]
[1720666341619,1.11296567,3114.2,3113.5,2.4911]
[1720666342016,1.11296567,3114.2,3113.6,2.55532137]
[1720666342257,1.11296567,3114.1,3113.6,2.55532137]
[1720666342428,1.11296567,3114.0,3113.7,0.45593214]
[1720666342632,3.33622548,3115.0,3113.7,0.45593214]
[1720666342844,1.11286593,3114.9,3113.6,2.55532137]
[1720666343024,1.11286593,3114.8,3113.6,2.55532137]
[1720666343217,1.11286593,3114.7,3113.6,2.55532137]
[1720666343422,3.33622548,3115.0,3113.6,2.55532137]
[1720666343423,1.11286593,3114.6,3113.6,2.55532137]
[1720666343633,3.33622548,3115.0,3113.6,2.4911]
[1720666343900,1.69501805,3114.9,3113.6,2.4911]
[1720666344103,1.1128855,3114.8,3113.6,2.4911]
[1720666344749,0.62445246,3114.7,3113.6,2.4911]
[1720666345091,1.1128855,3114.6,3113.6,2.4911]
[1720666345293,0.62445246,3114.5,3113.6,2.4911]
[1720666345468,1.1128855,3114.4,3113.6,2.4911]
[1720666345666,0.62445246,3114.3,3113.6,2.4911]
[1720666345863,1.1128855,3114.2,3113.6,2.55531953]
[1720666346083,0.62445246,3114.1,3113.6,2.55531953]
[1720666346263,1.1128855,3114.0,3113.6,2.55531953]
[1720666346464,0.62445246,3113.9,3113.7,0.45593195]
[1720666346954,0.58213255,3114.9,3113.7,0.45593195]
[1720666347154,0.08632851,3113.8,3113.6,2.55531953]
[1720666347500,0.58213255,3114.9,3113.6,2.55531953]
[1720666347701,0.08631852,3113.7,3113.6,2.55531953]
[1720666347904,0.58213255,3114.9,3113.6,2.55531953]
[1720666348206,0.08631852,3113.7,3113.6,2.55531953]
[1720666348421,0.33622548,3115.0,3113.6,2.55531953]
[1720666348582,1.73762232,3114.9,3113.6,2.55531953]
[1720666348783,1.73762232,3114.8,3114.2,0.834]
[1720666348979,1.73762232,3114.7,3114.2,0.834]
[1720666349185,1.92003612,3114.6,3114.2,0.834]
[1720666349380,1.73762232,3114.5,3114.2,0.834]
[1720666349613,1.73762232,3114.4,3114.2,0.834]
[1720666349907,1.82407456,3114.3,3114.2,0.834]
[1720666350520,0.08645224,3114.3,3114.2,0.834]
[1720666350813,7.44,3114.9,3114.2,0.834]
[1720666350969,0.08645561,3114.3,3114.2,0.834]
[1720666351169,1.73782314,3114.3,3114.2,0.834]
[1720666351419,1.82428213,3114.3,3114.2,0.834]
[1720666353282,1.82466593,3114.3,3114.2,0.834]
[1720666354016,1.8244975,3114.3,3114.2,3.248]
[1720666354977,0.08645899,3114.3,3114.2,3.5728]
[1720666355178,7.44,3115.3,3114.2,3.5728]
[1720666355404,1.7376706,3115.2,3114.8,0.834]
[1720666355586,1.7376706,3115.1,3114.8,0.834]
[1720666355793,1.7376706,3115.0,3114.8,0.834]
[1720666356003,1.7376706,3114.9,3114.8,0.834]
[1720666356615,1.7376706,3114.9,3114.7,0.834]
[1720666356794,1.7376706,3114.8,3114.7,0.834]
[1720666357315,0.91776706,3115.1,3114.7,0.834]
[1720666357525,1.73770875,3115.0,3114.7,0.834]
[1720666357817,2.00325633,3114.9,3114.3,0.834]
[1720666357983,1.73770875,3114.8,3114.3,0.834]
[1720666358180,1.73770875,3114.7,3114.3,0.834]
[1720666358516,1.73770875,3114.6,3114.3,0.834]
[1720666358677,1.73770875,3114.5,3114.2,2.414]
[1720666358877,2.349,3115.0,3114.2,2.414]
[1720666358878,1.73770875,3114.4,3114.2,2.414]
[1720666359213,0.62495348,3114.3,3114.2,2.6554]
[1720666359415,7.44,3115.3,3114.2,2.6554]
[1720666359619,7.44,3115.3,3114.2,2.414]
[1720666359620,1.73760507,3115.2,3114.2,2.414]
[1720666359784,1.73760507,3115.1,3114.2,2.414]
[1720666359983,1.73760507,3115.0,3114.2,2.414]
[1720666360207,1.73760507,3114.9,3114.3,0.06420834]
[1720666360513,1.73760507,3114.8,3114.3,0.06420834]
[1720666360701,1.73760507,3114.7,3114.4,0.24782083]
[1720666360916,1.73757954,3114.6,3114.4,0.24782083]
[1720666361218,7.44,3115.3,3114.4,0.24782083]
[1720666361417,1.73752768,3115.2,3114.3,0.06420834]
[1720666361582,7.44,3115.3,3114.3,0.06420834]
[1720666361583,1.73752768,3115.1,3114.3,0.06420834]
[1720666361783,1.73752768,3115.0,3114.3,0.06420834]
[1720666362133,1.73752768,3114.9,3114.3,0.06420834]
[1720666362281,1.73752768,3114.8,3114.3,0.06420834]
[1720666362670,7.44,3115.3,3114.5,2.2557]
[1720666362671,1.73752768,3114.7,3114.5,2.2557]
[1720666362818,1.11267536,3114.7,3114.5,2.31990656]
[1720666363015,0.08555459,3114.6,3114.5,2.31990656]
[1720666363530,7.44,3115.6,3114.5,2.31990656]
[1720666363735,1.82217895,3115.5,3114.5,2.5766793]
[1720666364061,1.73670196,3115.4,3114.5,2.5766793]
[1720666364233,1.73670196,3115.3,3114.5,2.5766793]
[1720666364432,1.73670196,3115.2,3114.5,2.5766793]
[1720666364635,1.73670196,3115.1,3114.5,2.5766793]
[1720666364837,1.73670196,3115.0,3114.6,0.28245001]
[1720666365151,1.19824135,3114.9,3114.7,0.0642047]
[1720666365455,0.08566043,3114.9,3114.7,2.3874]
[1720666365830,0.33612792,3115.6,3114.8,0.06420336]
[1720666366034,1.73668592,3115.5,3114.8,0.06420336]
[1720666366260,1.73668592,3115.4,3114.8,0.06420336]
[1720666366451,1.73668592,3115.3,3114.8,0.06420336]
[1720666366635,1.73668592,3115.2,3114.8,0.06420336]
[1720666366836,1.11253653,3115.1,3114.8,0.06420336]
[1720666367035,1.11253653,3115.0,3114.7,2.3874]
[1720666367237,0.08583397,3115.1,3114.7,2.3874]
[1720666367535,1.1125507,3115.0,3114.8,0.06420028]
[1720666367723,0.08581401,3114.9,3114.8,0.06420028]
[1720666367920,0.33612792,3115.6,3114.8,0.06420028]
[1720666368160,1.82263511,3115.5,3114.8,0.06420018]
[1720666368334,1.95263751,3115.4,3114.8,0.06420018]
[1720666368540,1.82261515,3115.3,3114.8,0.06420018]
[1720666368753,1.73676121,3115.2,3114.8,0.06420018]
[1720666368967,1.82259518,3115.1,3114.7,2.3874]
[1720666369267,1.11255548,3115.0,3114.7,2.3874]
[1720666369625,0.08578367,3114.9,3114.7,2.3874]
[1720666370227,0.33612792,3115.6,3114.7,2.3874]
[1720666370467,1.73693954,3115.5,3114.7,2.3874]
[1720666370645,1.9442545,3115.4,3114.7,2.3874]
[1720666370849,1.73694775,3115.3,3114.4,2.2587]
[1720666371027,1.73694775,3115.2,3114.4,2.2587]
[1720666371228,0.08582697,3115.3,3114.4,2.2587]
[1720666371229,1.73694775,3115.1,3114.4,2.2587]
[1720666371427,1.73694775,3115.1,3114.4,2.98467]
[1720666371428,1.11259465,3115.0,3114.4,2.98467]
[1720666371864,0.08578367,3114.9,3114.4,2.98467]
[1720666372043,1.11259465,3114.8,3114.4,2.98467]
[1720666372367,0.08574044,3114.7,3114.4,2.98467]
[1720666372570,0.20730675,3115.4,3114.4,2.98467]
[1720666372733,2.09037002,3115.3,3114.4,2.2587]
[1720666372934,1.73723563,3115.2,3114.4,2.2587]
[1720666373135,1.82301938,3115.1,3114.4,2.2587]
[1720666373330,1.73723563,3115.0,3114.4,2.2587]
[1720666373638,1.19841249,3114.9,3114.4,2.2587]
[1720666374030,1.11269524,3114.8,3114.4,2.2587]
[1720666374255,1.11269524,3114.7,3114.4,2.2587]
[1720666374456,0.08574718,3114.7,3114.4,2.2587]
[1720666374632,1.11269524,3114.6,3114.4,2.2587]
[1720666375179,0.26733068,3115.3,3114.4,2.2587]
[1720666375180,1.11269524,3115.2,3114.4,2.2587]
[1720666375386,1.82328533,3115.1,3114.4,2.2587]
[1720666375551,2.2525,3114.9,3114.1,2.2962]
[1720666375754,1.82325875,3114.8,3114.1,2.2962]
[1720666376070,1.73749484,3114.7,3114.1,2.2962]
[1720666376274,1.73749484,3114.6,3114.1,2.2962]
[1720666376461,1.11269524,3114.5,3114.1,2.2962]
[1720666376778,1.11269524,3114.4,3114.1,2.2962]
[1720666376937,1.11269524,3114.4,3114.1,2.83224158]
[1720666377137,1.11269524,3115.1,3114.1,2.83224158]
[1720666377369,0.08553284,3115.0,3114.1,2.2962]
[1720666377576,0.62477955,3114.9,3114.1,2.2962]
[1720666377749,1.82303333,3114.8,3114.1,2.2962]
[1720666377953,1.73751708,3114.7,3114.1,2.2962]
[1720666378149,1.82301336,3114.6,3114.1,2.2962]
[1720666378379,1.11273753,3114.5,3114.1,2.2962]
[1720666378679,1.19822837,3114.4,3114.1,2.2962]
[1720666378977,0.08549084,3114.4,3114.3,0.833]
[1720666379177,1.11274451,3114.4,3114.3,0.833]
[1720666379380,1.19822325,3114.4,3114.3,0.833]
[1720666379685,0.08547874,3114.4,3114.3,0.833]
[1720666380180,1.11269591,3115.1,3114.3,0.833]
[1720666380476,1.82310677,3115.0,3114.8,0.833]
[1720666380648,1.73736791,3114.9,3114.8,0.833]
[1720666380856,1.73736791,3114.9,3114.6,0.833]
[1720666381158,1.82291544,3114.9,3114.6,0.833]
[1720666381352,0.71022417,3114.9,3114.6,0.833]
[1720666381784,0.08554753,3114.9,3114.8,0.833]
[1720666382084,7.77612853,3115.2,3114.8,0.833]
[1720666382257,0.08572387,3114.9,3114.8,0.833]
[1720666382437,7.77612853,3115.2,3114.8,0.833]
[1720666382636,0.08570195,3114.9,3114.8,0.06420175]
[1720666382838,7.44,3115.2,3114.8,0.89720175]
[1720666383036,7.44,3115.8,3115.1,0.833]
[1720666383282,0.97401,3115.7,3115.1,0.833]
[1720666383577,0.33586818,3115.7,3115.1,0.833]
[1720666383737,0.33586818,3115.7,3115.3,0.833]
[1720666383941,0.33586818,3115.7,3114.9,0.833]
[1720666384143,0.33586818,3115.7,3115.1,0.833]
[1720666384586,0.33586818,3115.7,3114.8,0.06420175]
[1720666384780,0.599465,3115.7,3114.8,0.06420175]
[1720666385587,0.33586818,3115.7,3114.9,2.451]
[1720666385791,0.33586818,3115.7,3115.0,0.06419387]
[1720666385995,0.33586818,3115.7,3115.1,2.451]
[1720666386168,0.33586818,3115.7,3115.2,0.06419419]
[1720666386367,1.7373818,3115.6,3115.2,0.06419419]
[1720666386565,1.11251027,3115.5,3115.2,0.31571361]
[1720666386773,1.11251027,3115.4,3115.2,0.31571361]
[1720666387006,7.44,3116.7,3115.4,2.451]
[1720666387301,1.1122364,3116.6,3115.5,2.51518285]
[1720666387483,1.1122364,3116.5,3115.7,2.0]
[1720666387689,1.1122364,3116.4,3115.8,0.06417745]
[1720666388072,1.11208287,3116.3,3115.9,2.451]
[1720666388375,1.11208287,3116.2,3115.9,2.451]
[1720666388686,0.33599489,3116.7,3115.9,2.90251776]
[1720666388921,1.1120953,3116.6,3115.9,2.451]
[1720666389200,1.1120953,3116.5,3116.0,0.06417633]
[1720666389370,1.1120953,3116.4,3116.0,0.06417633]
[1720666389689,1.1120783,3116.3,3116.0,0.06417633]
[1720666389894,0.33599489,3116.7,3116.0,0.31569396]
[1720666390199,1.11207325,3116.6,3116.0,0.31569396]
[1720666390392,1.11207325,3116.5,3116.0,0.31569396]
[1720666390558,1.11207325,3116.6,3116.0,0.31569396]
[1720666390758,1.11207325,3116.5,3116.0,0.31569396]
[1720666391054,1.11207325,3116.4,3116.0,0.31569396]
[1720666391265,0.33599489,3116.7,3116.1,0.2766694]
[1720666391588,1.1120282,3116.6,3116.1,0.2766694]
[1720666391752,1.1120282,3116.5,3116.1,0.2766694]
[1720666392082,0.33599489,3116.7,3116.1,0.2766694]
[1720666392285,1.11203863,3116.6,3116.1,0.2766694]
[1720666392461,0.33599489,3116.7,3116.1,0.2766694]
[1720666392663,1.11203379,3116.6,3116.1,0.2766694]
[1720666392868,0.33599489,3116.7,3116.1,0.2766694]
[1720666393068,0.08075942,3116.5,3116.1,0.2766694]
[1720666393280,1.11206389,3116.4,3115.6,2.57741829]
[1720666393483,0.08075256,3116.4,3115.6,2.57741829]
[1720666393885,0.33599489,3116.7,3115.6,2.57741829]
[1720666394180,1.11211062,3116.6,3115.6,2.57741829]
[1720666394382,0.08091843,3116.5,3115.8,2.2565]
[1720666394603,0.33599489,3116.7,3115.8,2.2565]
[1720666394769,1.19300076,3116.6,3115.8,2.2565]
[1720666394964,0.08092166,3116.6,3115.8,2.2565]
[1720666395212,0.08092166,3116.6,3115.8,2.32067763]
[1720666395507,0.08092166,3116.6,3116.0,2.2565]
[1720666398609,0.08092166,3116.6,3116.0,2.32067238]
[1720666399872,0.08092166,3116.6,3116.0,2.2565]
[1720666400074,0.08092166,3116.6,3116.0,2.32067085]
[1720666400284,0.08092166,3116.6,3116.0,2.2565]
[1720666400485,0.08092166,3116.6,3116.1,0.4534342]
[1720666400994,0.08092166,3116.6,3116.2,0.06416885]
[1720666401409,0.08092166,3116.6,3116.3,2.4094]
[1720666401614,0.08092166,3116.6,3116.3,2.47356893]
[1720666402815,0.08092166,3116.6,3116.3,2.4094]
[1720666403116,0.33599489,3116.7,3116.4,0.24094]
[1720666406520,9.7862,3117.6,3116.5,0.06416555]
[1720666406824,0.33586119,3117.3,3116.9,0.832]
[1720666406987,1.19030813,3117.2,3116.9,0.832]
[1720666407188,1.11189979,3117.1,3116.9,0.832]
[1720666407511,1.11189979,3117.0,3116.9,0.832]
[1720666408027,1.19038743,3117.0,3116.9,0.832]
[1720666408227,1.1903763,3117.0,3116.9,0.832]
[1720666408723,0.07848764,3117.0,3116.9,3.67622885]
[1720666409238,2.2697,3118.2,3117.0,2.4592]
[1720666409388,1.11158542,3118.1,3117.8,0.832]
[1720666409589,1.11158542,3118.0,3117.8,0.832]
[1720666409795,1.11158542,3118.1,3117.4,0.832]
[1720666410017,0.33812854,3118.0,3117.4,0.832]
[1720666410335,1.11158542,3117.9,3117.4,0.832]
[1720666410536,1.11158542,3117.9,3117.0,0.832]
[1720666410537,2.2632,3117.8,3117.0,0.832]
[1720666410834,1.11158542,3117.7,3116.6,2.3467]
[1720666411427,2.2666,3117.6,3116.6,2.3467]
[1720666411632,2.2666,3117.6,3116.3,4.4003]
[1720666411633,1.44940396,3117.5,3116.3,4.4003]
[1720666411990,1.11195216,3117.4,3115.9,1.997]
[1720666412230,2.496,3117.2,3115.8,2.2714]
[1720666412385,1.11195216,3117.1,3115.8,2.2714]
[1720666412723,3.60795216,3117.0,3115.8,2.2714]
[1720666412928,1.47274738,3116.9,3115.8,2.2714]
[1720666413224,1.11195216,3116.8,3115.8,2.2714]
[1720666415424,1.11213786,3116.7,3115.8,2.2714]
[1720666415603,1.11213786,3116.6,3115.8,2.2714]
[1720666415799,1.11213786,3116.8,3115.8,2.2714]
[1720666416026,2.364,3116.7,3115.5,4.4836]
[1720666416322,1.45975165,3116.6,3115.5,4.4836]
[1720666416487,1.11213786,3116.5,3115.5,4.4836]
[1720666417110,2.4651,3116.4,3115.1,4.4594]
[1720666417297,1.11213786,3116.3,3115.1,4.4594]
[1720666417831,1.11213786,3116.3,3114.7,4.4594]
[1720666417832,2.4651,3116.1,3114.7,4.4594]
[1720666418045,1.36620033,3116.0,3114.7,4.4594]
[1720666418208,1.11213786,3115.9,3114.7,4.4594]
[1720666418528,1.18746941,3115.9,3114.7,4.4594]
[1720666418689,3.37124485,3115.8,3114.7,1.997]
[1720666418889,3.37124485,3115.8,3114.4,2.4984]
[1720666418890,1.11254485,3115.7,3114.4,2.4984]
[1720666419119,0.33712449,3115.6,3114.5,0.44954]
[1720666419317,1.11254485,3115.5,3114.5,0.44954]
[1720666419620,1.11254485,3115.5,3114.3,1.997]
[1720666419621,2.3757,3115.3,3114.3,1.997]
[1720666419821,2.3757,3115.3,3114.1,2.3815]
[1720666419822,1.11254485,3115.2,3114.1,2.3815]
[1720666420129,1.18777307,3115.2,3113.6,2.3815]
[1720666420460,1.11254485,3115.1,3113.6,2.3815]
[1720666420820,0.07526219,3115.0,3113.6,2.3815]
[1720666421158,1.11254485,3114.9,3113.7,0.43785]
[1720666421332,1.18795649,3114.9,3113.7,0.43785]
[1720666421660,1.11254485,3114.8,3113.7,0.43785]
[1720666421953,0.07537304,3114.7,3113.7,0.43785]
[1720666422155,1.11281428,3115.1,3113.7,0.43785]
[1720666422335,0.07535969,3114.6,3113.8,0.281935]
[1720666422532,3.0,3115.2,3113.9,1.997]
[1720666422776,1.18800546,3115.1,3113.9,1.997]
[1720666422933,1.11276031,3115.0,3113.9,1.997]
[1720666423270,0.07504035,3114.9,3113.9,1.997]
[1720666423559,2.3757,3115.3,3114.0,0.2278935]